fUSD/lending_fUSD_20240916
["ID","MTS","AMOUNT","RATE_DAILY","PERIOD"]
[338341590,1726522243795,-151.0,0.000139,2]
[338341591,1726522243804,-151.0,0.000139,2]
[338341592,1726522243813,-151.0,0.000139,2]
[338341593,1726522243822,-151.0,0.000139,2]
[338341594,1726522243832,-151.0,0.000139,2]
[338341595,1726522243841,-151.0,0.000139,2]
[338341596,1726522243850,-321.327683,0.000139,2]
[338341597,1726522243859,-321.327683,0.000139,2]
[338341598,1726522243868,-151.0,0.000139,2]
[338341599,1726522243877,-151.0,0.000139,2]
[338341600,1726522243886,-151.0,0.000139,2]
[338341601,1726522243896,-151.0,0.000139,2]
[338341602,1726522243905,-151.0,0.000139,2]
[338341603,1726522243915,-151.0,0.000139,2]
[338341604,1726522243924,-151.0,0.000139,2]
[338341605,1726522243933,-25.63204793,0.000139,2]
[338341606,1726522243944,-125.36795207,0.000139,2]
[338341607,1726522243954,-151.0,0.000139,2]
[338341608,1726522243963,-157.738697,0.000139,2]
[338341609,1726522243972,-151.0,0.000139,2]
[338341610,1726522243982,-151.0,0.000139,2]
[338341611,1726522243992,-151.0,0.000139,2]
[338341612,1726522244001,-257.446879,0.000139,2]
[338341613,1726522244009,-151.0,0.000139,2]
[338341614,1726522244019,-151.0,0.000139,2]
[338341615,1726522244028,-188.933177,0.000139,2]
[338341616,1726522244037,-160.17589177,0.000139,2]
[338341617,1726522244048,-28.75728523,0.000139,2]
[338341618,1726522244057,-367.629497,0.000139,2]
[338341619,1726522244066,-151.0,0.000139,2]
[338341620,1726522244075,-179.822734,0.000139,2]
[338341621,1726522244084,-151.0,0.000139,2]
[338341622,1726522244093,-151.0,0.000139,2]
[338341623,1726522244104,-179.822734,0.000139,2]
[338341624,1726522244113,-151.0,0.000139,2]
[338341625,1726522244122,-151.0,0.000139,2]
[338341626,1726522244131,-151.0,0.000139,2]
[338341627,1726522244141,-151.0,0.000139,2]
[338341628,1726522244149,-157.098783,0.000139,2]
[338341629,1726522244158,-157.098783,0.000139,2]
[338341630,1726522244167,-5528.38735341,0.000139,3]
[338341631,1726522244179,-2829.58704795,0.000139,3]
[338341632,1726522244191,-26275.86125951,0.000139,3]
[338341633,1726522244203,-500.0,0.000139,3]
[338341634,1726522244213,-2714.90000609,0.000139,3]
[338341635,1726522244225,-511.74477419,0.000139,3]
[338341636,1726522244235,-298.72,0.000139,3]
[338341637,1726522244246,-469.133491,0.000139,3]
[338341638,1726522244257,-6020.00259753,0.000139,3]
[338341639,1726522244268,-4783.16,0.000139,3]
[338341640,1726522244279,-22850.13228136,0.000139,3]
[338341641,1726522244290,-1124.49542968,0.000139,3]
[338341650,1726522245897,-401.55638336,0.00012973,2]
[338341652,1726522245907,-5.81506128,0.000139,3]
[338341655,1726522245917,-10019.09632223,0.000139,3]
[338341657,1726522245928,-222292.84248477,0.000139,3]
[338341659,1726522245937,-151.0,0.000139,2]
[338341660,1726522245947,-151.0,0.000139,2]
[338341662,1726522245956,-240.926235,0.000139,2]
[338341664,1726522245965,-151.0,0.000139,2]
[338341665,1726522245974,-151.0,0.000139,2]
[338341666,1726522245983,-151.0,0.000139,2]
[338341668,1726522245992,-205.337922,0.000139,2]
[338341670,1726522246001,-205.337922,0.000139,2]
[338341672,1726522246010,-151.0,0.000139,2]
[338341674,1726522246021,-151.0,0.000139,2]
[338341676,1726522246029,-2762.68221162,0.00013922,2]
[338341678,1726522246038,-276.86462,0.0001394,2]
[338341679,1726522246047,-197.41791357,0.00014,2]
[338341681,1726522246056,-2762.68221162,0.00014167,2]
[338341683,1726522246065,-1000.0,0.00014178,2]
[338341685,1726522246074,-197.41791357,0.000143,2]
[338341687,1726522246083,-267.921,0.00014322,2]
[338341689,1726522246092,-150.0,0.00014322,2]
[338341691,1726522246103,-150.0,0.00014322,2]
[338341693,1726522246112,-150.702,0.00014322,2]
[338341695,1726522246121,-1000.0,0.00014342,2]
[338341697,1726522246130,-200.0,0.000144,5]
[338341699,1726522246139,-2762.68221162,0.00014411,2]
[338341700,1726522246149,-500.0,0.00014452,2]
[338341701,1726522246158,-500.0,0.00014452,2]
[338341702,1726522246167,-1400.0,0.00014452,2]
[338341703,1726522246177,-853.9432134,0.000145,3]
[338341704,1726522246186,-200.0,0.000145,5]
[338341705,1726522246195,-170.591032,0.00014521,2]
[338341706,1726522246206,-371.78,0.00014536,2]
[338341707,1726522246225,-276.86462,0.0001456,2]
[338341708,1726522246233,-232.823,0.000146,2]
[338341709,1726522246242,-197.41791357,0.000146,2]
[338341710,1726522246251,-200.0,0.000146,5]
[338341711,1726522246260,-2762.68221162,0.00014656,2]
[338341713,1726522246269,-1148.53697699,0.00014679,2]
[338341714,1726522246278,-200.0,0.000147,5]
[338341715,1726522246287,-150.0,0.00014722,2]
[338341716,1726522246297,-150.0,0.00014738,2]
[338341717,1726522246306,-150.0,0.00014743,2]
[338341718,1726522246315,-150.0,0.00014745,2]
[338341719,1726522246324,-215.47,0.00014747,2]
[338341720,1726522246332,-175.76798512,0.00014751,2]
[338341721,1726522246341,-412873.37005744,0.0001478,2]
[338341722,1726522246353,-1131.90187909,0.0001478,2]
[338341723,1726522246363,-1144.25759762,0.0001478,2]
[338341724,1726522246374,-1583.93695145,0.0001478,2]
[338341725,1726522246385,-389.71569304,0.0001478,2]
[338341726,1726522246395,-89270.32908214,0.0001478,2]
[338341727,1726522246406,-529.5997487,0.0001478,2]
[338341728,1726522246506,-535.01,0.0001478,2]
[338341729,1726522246517,-332.78,0.0001478,2]
[338341730,1726522294410,500.0,0.00011164,2]
[338341731,1726522327098,800.0,0.00010068,2]
[338341732,1726522327806,1000.0,0.00010068,2]
[338341733,1726522328673,800.0,0.00011438,2]
[338341734,1726522329393,1000.0,0.00011438,2]
[338341735,1726522330934,500.0,0.00010068,2]
[338341736,1726522397789,10811.86563814,0.00026,60]
[338341737,1726522409067,500.0,0.00026,120]
[338341738,1726522427234,170.92,0.00010783,2]
[338341739,1726522663492,330.87,0.00011494,2]
[338341741,1726522728627,375.63,0.00012572,2]
[338341742,1726522755446,156.44,0.00010959,2]
[338341743,1726522763200,250.0,0.00012562,2]
[338341744,1726522803081,150.0,0.00010959,2]
[338341745,1726522803407,150.0,0.00010959,2]
[338341746,1726522803689,150.0,0.00010959,2]
[338341747,1726522803955,150.0,0.00010959,2]
[338341748,1726522804187,150.0,0.00010959,2]
[338341749,1726522804510,150.0,0.00010959,2]
[338341750,1726522804766,150.0,0.00010959,2]
[338341751,1726522805012,150.0,0.00010959,2]
[338341752,1726522805237,150.0,0.00010959,2]
[338341753,1726522805476,150.0,0.00010959,2]
[338341754,1726522805919,150.0,0.00010959,2]
[338341755,1726522806345,150.0,0.00010959,2]
[338341756,1726522806867,150.0,0.00010959,2]
[338341757,1726522807015,273.69,0.00012608,2]
[338341758,1726522807088,150.0,0.00010959,2]
[338341759,1726522807333,150.0,0.00010959,2]
[338341760,1726522807564,150.0,0.00010959,2]
[338341761,1726522807793,150.0,0.00010959,2]
[338341762,1726522808063,154.67203195,0.00010959,2]
[338341763,1726522811304,250.0,0.00012608,2]
[338341764,1726522874875,150.0,0.00012626,2]
[338341765,1726523009295,500.0,0.000255,120]
[338341766,1726523015861,465.87,0.00012591,2]
[338341767,1726523041515,-300.0,0.00012632,2]
[338341768,1726523041536,-9700.0,0.00012633,2]
[338341769,1726523042644,-7388.39,0.00012633,2]
[338341770,1726523042664,-243.5,0.00012638,2]
[338341771,1726523042684,-242.03,0.00012681,2]
[338341772,1726523042703,-2126.08,0.0001269,2]
[338341773,1726523043595,-7861.11343522,0.0001269,2]
[338341774,1726523043616,-150.0,0.00012699,2]
[338341775,1726523043636,-1988.88656478,0.000127,2]
[338341776,1726523044423,-10000.0,0.000127,2]
[338341777,1726523045272,-10000.0,0.000127,2]
[338341778,1726523052277,-10000.0,0.000127,2]
[338341779,1726523053295,-4607.75523522,0.000127,2]
[338341780,1726523053316,-5392.24476478,0.000127,2]
[338341781,1726523054463,174.44,0.00012565,2]
[338341782,1726523059707,-10000.0,0.00012699,2]
[338341783,1726523078129,170.92,0.0001008,2]
[338341784,1726523117130,-680.0,0.00012699,2]
[338341785,1726523117151,-3531.08523522,0.000127,2]
[338341786,1726523117171,-900.0,0.000127,2]
[338341787,1726523117192,-4888.91476478,0.000128,2]
[338341788,1726523118092,-258.12323522,0.000128,2]
[338341789,1726523118123,-4944.4545,0.000128,2]
[338341790,1726523118147,-4797.42226478,0.000128,2]
[338341791,1726523119118,-10000.0,0.000128,2]
[338341792,1726523119982,504.0,0.00012581,2]
[338341793,1726523120443,250.0,0.00012605,2]
[338341794,1726523131758,-500.0,0.00012808,2]
[338341795,1726523131777,-800.0,0.00012808,2]
[338341796,1726523131797,-1000.0,0.00012808,2]
[338341797,1726523131816,-150.0,0.00012921,2]
[338341798,1726523131836,-186.258,0.0001299,2]
[338341799,1726523179481,500.0,0.00010068,2]
[338341800,1726523179737,800.0,0.00010068,2]
[338341801,1726523180177,600.0,0.00010068,2]
[338341802,1726523181308,800.0,0.00011438,2]
[338341803,1726523181771,600.0,0.00011438,2]
[338341804,1726523207926,-2325.742,0.0001279,2]
[338341816,1726523250894,-319.73,0.00012684,2]
[338341817,1726523250914,-1481.0,0.00012789,2]
[338341818,1726523250933,-8199.27,0.0001279,2]
[338341819,1726523252080,-10000.0,0.0001279,2]
[338341820,1726523253108,-8259.558,0.0001279,2]
[338341821,1726523253130,-1740.442,0.000128,2]
[338341822,1726523266883,-426.8447,0.000128,2]
[338341823,1726523266904,-9573.1553,0.00012808,2]
[338341824,1726523306556,321.49,0.00012453,2]
[338341825,1726523337013,250.0,0.00012477,2]
[338341826,1726523340394,-250.0,0.0001267,2]
[338341827,1726523340415,-510.26,0.00012733,2]
[338341828,1726523340437,-510.26,0.00012736,2]
[338341829,1726523340458,-510.26,0.0001274,2]
[338341830,1726523340479,-510.26,0.00012743,2]
[338341831,1726523340502,-538.5231147,0.00012743,2]
[338341832,1726523340523,-510.26,0.00012746,2]
[338341833,1726523340543,-510.26,0.0001275,2]
[338341834,1726523340564,-510.26,0.00012753,2]
[338341835,1726523340585,-510.26,0.00012757,2]
[338341836,1726523340605,-482.77,0.00012757,2]
[338341837,1726523340626,-150.99,0.00012757,2]
[338341838,1726523340646,-510.26,0.0001276,2]
[338341839,1726523340667,-510.26,0.00012763,2]
[338341840,1726523340686,-510.26,0.00012767,2]
[338341841,1726523340707,-510.26,0.0001277,2]
[338341842,1726523340727,-510.26,0.00012773,2]
[338341843,1726523340748,-510.26,0.00012777,2]
[338341844,1726523340769,-510.26,0.0001278,2]
[338341845,1726523340789,-510.26,0.00012783,2]
[338341846,1726523340810,-413.5568853,0.00012787,2]
[338341848,1726523431942,800.0,0.00010068,2]
[338341851,1726523432131,-96.7031147,0.00012787,2]
[338341852,1726523432140,-510.26,0.0001279,2]
[338341853,1726523432150,-510.26,0.00012793,2]
[338341854,1726523432159,-510.26,0.00012797,2]
[338341855,1726523432168,-500.0,0.00012808,2]
[338341856,1726523432177,-600.0,0.00012808,2]
[338341857,1726523432186,-150.0,0.00013123,2]
[338341858,1726523432195,-580.2,0.00013144,2]
[338341859,1726523432204,-10232.67,0.00013144,2]
[338341860,1726523432215,-5568.63,0.00013144,2]
[338341861,1726523432224,-2701.73,0.00013144,2]
[338341862,1726523432233,-496.0,0.00013335,2]
[338341863,1726523432242,-157.92,0.00013355,2]
[338341864,1726523432252,-818.66,0.00013355,2]
[338341865,1726523432261,-1000.0,0.00013424,2]
[338341866,1726523432271,-1000.0,0.00013424,2]
[338341867,1726523432280,-1000.0,0.00013424,2]
[338341868,1726523432289,-1000.0,0.00013424,2]
[338341869,1726523432298,-1000.0,0.00013424,2]
[338341870,1726523432307,-1000.0,0.00013424,2]
[338341871,1726523432317,-1000.0,0.00013424,2]
[338341872,1726523432326,-1000.0,0.00013424,2]
[338341873,1726523432335,-1000.0,0.00013424,2]
[338341874,1726523432344,-1000.0,0.00013424,2]
[338341875,1726523432353,-1000.0,0.00013424,2]
[338341876,1726523432363,-1000.0,0.00013424,2]
[338341877,1726523432372,-1000.0,0.00013424,2]
[338341878,1726523432381,-1000.0,0.00013424,2]
[338341879,1726523432389,-1000.0,0.00013424,2]
[338341880,1726523432399,-1000.0,0.00013424,2]
[338341881,1726523432408,-1000.0,0.00013424,2]
[338341882,1726523432417,-1000.0,0.00013424,2]
[338341883,1726523432426,-1000.0,0.00013424,2]
[338341885,1726523432435,-1000.0,0.00013424,2]
[338341887,1726523432444,-1000.0,0.00013424,2]
[338341889,1726523432453,-1000.0,0.00013424,2]
[338341891,1726523432462,-1000.0,0.00013424,2]
[338341893,1726523432471,-1000.0,0.00013424,2]
[338341895,1726523432480,-1000.0,0.00013424,2]
[338341897,1726523432490,-1000.0,0.00013424,2]
[338341899,1726523432498,-1000.0,0.00013424,2]
[338341901,1726523432507,-1000.0,0.00013424,2]
[338341903,1726523432516,-1000.0,0.00013424,2]
[338341905,1726523432525,-1000.0,0.00013424,2]
[338341906,1726523432536,-1000.0,0.00013424,2]
[338341908,1726523432546,-1000.0,0.00013424,2]
[338341910,1726523432555,-1000.0,0.00013424,2]
[338341911,1726523432564,-1000.0,0.00013424,2]
[338341912,1726523432573,-1000.0,0.00013424,2]
[338341913,1726523432582,-1000.0,0.00013424,2]
[338341914,1726523432592,-1000.0,0.00013424,2]
[338341915,1726523432601,-1000.0,0.00013424,2]
[338341916,1726523432611,-1000.0,0.00013424,2]
[338341917,1726523432621,-1000.0,0.00013424,2]
[338341918,1726523432630,-1140.0,0.00013424,2]
[338341919,1726523432640,-500.0,0.000135,2]
[338341920,1726523432649,-167.08,0.00013658,2]
[338341921,1726523432658,-162.48,0.00013699,2]
[338341922,1726523432667,-330.87,0.00013758,2]
[338341923,1726523432676,-151.15808242,0.00013904,2]
[338341924,1726523432686,-157.28,0.00014025,2]
[338341925,1726523432695,-174.44,0.00014136,2]
[338341926,1726523432704,-504.0,0.00014154,2]
[338341927,1726523432714,-600.0,0.00014178,2]
[338341928,1726523432723,-913.58990063,0.0001427,2]
[338341929,1726523432732,-197.41791357,0.0001427,2]
[338341930,1726523432742,-1000.0,0.0001428,2]
[338341931,1726523432751,-913.58990059,0.0001434,2]
[338341932,1726523432760,-750.16,0.0001435,3]
[338341933,1726523432770,-150.0,0.00014356,2]
[338341934,1726523432778,-42441.2946267,0.0001436,3]
[338341935,1726523432787,-245927.93683653,0.0001436,3]
[338341936,1726523432800,-785.42033485,0.0001436,3]
[338341937,1726523432814,-517.85511205,0.0001436,3]
[338341938,1726523432825,-1066.56431726,0.0001436,3]
[338341939,1726523432836,-482.73538408,0.0001436,3]
[338341940,1726523432847,-2130.44985288,0.0001436,3]
[338341941,1726523432858,-827.13712285,0.0001436,3]
[338341958,1726523433502,800.0,0.00011438,2]
[338341960,1726523438070,-587.5728,0.00012808,2]
[338341961,1726523438082,-212.4272,0.00012808,2]
[338341962,1726523438092,-800.0,0.00014178,2]
[338341963,1726523438100,-29179.06330462,0.0001436,3]
[338341964,1726523438128,-1520.98047815,0.0001436,3]
[338341965,1726523438186,-381.33465368,0.0001436,3]
[338341966,1726523438197,-2816.79097796,0.0001436,3]
[338341967,1726523438209,-33041.69090109,0.0001436,3]
[338341968,1726523438219,-913.58990059,0.0001441,2]
[338341969,1726523438228,-421.34449989,0.00014427,2]
[338341970,1726523438237,-7500.0,0.0001448,2]
[338341971,1726523438246,-913.58990059,0.0001448,2]
[338341972,1726523438255,-4736.81002441,0.00014483,2]
[338341973,1726523438264,-548.29434066,0.00014483,2]
[338341974,1726523438273,-166.198302,0.0001449,2]
[338341975,1726523438283,-150.0,0.00014506,2]
[338341976,1726523438292,-153.531929,0.00014521,2]
[338341977,1726523438474,-913.58990059,0.0001455,2]
[338341978,1726523438484,-150.0,0.00014555,2]
[338341979,1726523438493,-150.0,0.00014555,2]
[338341980,1726523438502,-150.0,0.0001457,2]
[338341981,1726523438512,-158.53,0.0001457,2]
[338341982,1726523438521,-263.2636356,0.0001457,2]
[338341983,1726523438530,-150.0,0.00014578,2]
[338341984,1726523438539,-28104.41300423,0.0001458,2]
[338341985,1726523438555,-2540.52281559,0.0001458,2]
[338341986,1726523438567,-815.0,0.0001458,2]
[338341988,1726523438578,-4314.98017366,0.0001458,2]
[338341989,1726523438590,-1869.92772421,0.0001458,2]
[338341991,1726523438602,-1284.56955671,0.0001458,2]
[338341992,1726523438613,-2222.99999999,0.0001458,2]
[338341993,1726523440133,-900.71549999,0.0001458,2]
[338341994,1726523440144,-344.62556429,0.0001458,2]
[338341995,1726523440155,-1043.21965598,0.0001458,2]
[338342001,1726523442962,-1665.62508945,0.0001458,2]
[338342002,1726523442971,-260675.30424314,0.0001458,2]
[338342004,1726523443010,-676.78766256,0.0001458,2]
[338342005,1726523443021,-574.13513624,0.0001458,2]
[338342006,1726523443032,-1064.4559759,0.0001458,2]
[338342014,1726523443563,-0.13996542,0.0001458,2]
[338342015,1726523443574,-292.64616351,0.0001458,2]
[338342016,1726523443585,-31008.4358825,0.0001458,2]
[338342017,1726523443598,-121179.68175315,0.0001458,2]
[338342018,1726523443609,-1070.0,0.0001458,2]
[338342019,1726523443636,-1086.52830638,0.0001458,2]
[338342020,1726523443647,-26350.0,0.0001458,2]
[338342031,1726523443931,-22528.8526588,0.0001458,2]
[338342032,1726523443942,-5130.95572728,0.0001458,2]
[338342033,1726523443953,-1507.29,0.0001458,2]
[338342034,1726523443964,-1660.08270977,0.0001458,2]
[338342035,1726523443974,-1039.9999,0.0001458,2]
[338342036,1726523443985,-2350.89459176,0.0001458,2]
[338342037,1726523443996,-498.7999998,0.0001458,2]
[338342038,1726523444007,-2721.87978134,0.0001458,2]
[338342039,1726523444018,-4650.0,0.0001458,2]
[338342040,1726523444029,-4720.74530425,0.0001458,2]
[338342041,1726523444040,-58032.01595638,0.0001458,2]
[338342042,1726523444050,-666.41,0.0001458,2]
[338342043,1726523444742,-1448.63415379,0.0001458,2]
[338342044,1726523444753,-1951.24999987,0.0001458,2]
[338342045,1726523444764,-877.60613837,0.0001458,2]
[338342046,1726523444774,-1656.57976988,0.0001458,2]
[338342059,1726523446040,-17283.41927423,0.0001458,2]
[338342071,1726523446152,-18941.82842664,0.0001458,2]
[338342073,1726523446164,-4197.74412386,0.0001458,2]
[338342074,1726523446212,-215110.53511958,0.0001458,2]
[338342075,1726523446223,-5380.3,0.0001458,2]
[338342076,1726523446272,-599.38775637,0.0001458,2]
[338342081,1726523474670,349.71,0.00011805,2]
[338342082,1726523488718,500.0,0.00010068,2]
[338342083,1726523506071,500.0,0.00011164,2]
[338342084,1726523507643,500.0,0.00012534,2]
[338342085,1726523516681,502.15709234,0.00011164,2]
[338342086,1726523611707,500.0,0.00026,120]
[338342087,1726523658392,272.46,0.00010959,2]
[338342088,1726523662279,1050.0,0.00011,2]
[338342090,1726523788245,500.0,0.00026,60]
[338342091,1726523788500,500.0,0.00026,60]
[338342092,1726523788763,500.0,0.00026,60]
[338342093,1726523789032,500.0,0.00026,60]
[338342094,1726523789784,500.0,0.00026,60]
[338342095,1726523790096,500.0,0.00026,60]
[338342096,1726523790495,500.0,0.00026,60]
[338342097,1726523790641,500.0,0.00026,60]
[338342098,1726523790895,500.0,0.00026,60]
[338342099,1726523791217,500.0,0.00026,60]
[338342100,1726523791475,500.0,0.00026,60]
[338342101,1726523792103,500.0,0.00026,60]
[338342102,1726523792403,500.0,0.00026,60]
[338342103,1726523792750,500.0,0.00026,60]
[338342104,1726523792996,500.0,0.00026,60]
[338342105,1726523793352,500.0,0.00026,60]
[338342106,1726523793737,500.0,0.00026,60]
[338342107,1726523793972,500.0,0.00026,60]
[338342108,1726523794555,500.0,0.00026,60]
[338342109,1726523794805,508.18987286,0.00026,60]
[338342110,1726523813788,600.0,0.00010068,2]
[338342111,1726523815402,600.0,0.00011438,2]
[338342112,1726524032203,359.52,0.00011541,2]
[338342113,1726524055842,1000.0,0.00026,61]
[338342114,1726524064102,1000.0,0.00026,62]
[338342115,1726524070058,150.0,0.00026,61]
[338342116,1726524071113,150.0,0.00026,61]
[338342117,1726524071803,150.0,0.00026,61]
[338342118,1726524072351,150.0,0.00026,61]
[338342119,1726524072967,150.0,0.00026,61]
[338342120,1726524073484,150.0,0.00026,61]
[338342121,1726524074034,150.0,0.00026,61]
[338342122,1726524074544,150.0,0.00026,61]
[338342123,1726524075081,150.0,0.00026,61]
[338342124,1726524075557,150.0,0.00026,61]
[338342125,1726524076055,150.0,0.00026,61]
[338342126,1726524076550,150.0,0.00026,61]
[338342127,1726524077077,150.0,0.00026,61]
[338342128,1726524077572,150.0,0.00026,61]
[338342129,1726524078059,150.0,0.00026,61]
[338342130,1726524078561,150.0,0.00026,61]
[338342131,1726524079035,150.0,0.00026,61]
[338342132,1726524079517,150.0,0.00026,61]
[338342133,1726524080021,150.0,0.00026,61]
[338342134,1726524080527,150.0,0.00026,61]
[338342135,1726524081042,150.0,0.00026,61]
[338342136,1726524081614,150.0,0.00026,61]
[338342137,1726524082020,150.0,0.00026,61]
[338342138,1726524082539,150.0,0.00026,61]
[338342139,1726524083046,150.0,0.00026,61]
[338342140,1726524093624,1000.0,0.00026,60]
[338342141,1726524182911,168.41,0.00010959,2]
[338342142,1726524207699,500.0,0.00026,120]
[338342144,1726524312981,150.091707,0.00026,62]
[338342145,1726524313958,150.091707,0.00026,62]
[338342146,1726524314614,150.091707,0.00026,62]
[338342147,1726524315120,150.091707,0.00026,62]
[338342148,1726524315667,150.091707,0.00026,62]
[338342149,1726524316346,150.091707,0.00026,62]
[338342150,1726524317413,150.091707,0.00026,62]
[338342151,1726524321373,150.091707,0.00026,62]
[338342152,1726524322102,150.091707,0.00026,62]
[338342153,1726524323447,150.091707,0.00026,62]
[338342158,1726524518695,257.90671442,0.00012608,2]
[338342159,1726524523669,257.90671441,0.00012626,2]
[338342161,1726524604613,151.0,0.00010959,2]
[338342162,1726524604915,298.0,0.00010959,2]
[338342173,1726524632339,-150.0,0.00012644,2]
[338342174,1726524632349,-191.057044,0.00012744,2]
[338342175,1726524632359,-500.0,0.00012808,2]
[338342176,1726524632369,-190.95608729,0.00012808,2]
[338342177,1726524632385,-409.04391271,0.00012808,2]
[338342178,1726524632395,-1330.95608729,0.00012899,2]
[338342179,1726524632407,-871.5527439,0.00012899,2]
[338342180,1726524632419,-1122.28373515,0.00012899,2]
[338342181,1726524632430,-300.0,0.00012999,2]
[338342182,1726524632439,-1100.0,0.00013,2]
[338342183,1726524632449,-215.05118946,0.00013182,2]
[338342184,1726524632460,-1587.35583697,0.00013182,2]
[338342185,1726524632471,-989.75957596,0.00013182,2]
[338342186,1726524632482,-532.62596393,0.00013182,2]
[338342187,1726524632492,-747.38836208,0.00013243,2]
[338342188,1726524632503,-2.61163792,0.00013243,2]
[338342189,1726524632513,-496.98883816,0.00013282,2]
[338342190,1726524632528,-975.85116184,0.00013282,2]
[338342191,1726524632538,-297.76,0.00013299,2]
[338342192,1726524632547,-150.99,0.00013299,2]
[338342194,1726524632557,-795.71,0.00013299,2]
[338342196,1726524632567,-499.99,0.00013299,2]
[338342198,1726524632577,-863.67,0.00013303,2]
[338342200,1726524632586,-150.0,0.00013315,2]
[338342202,1726524632596,-250.0,0.00013396,2]
[338342204,1726524632606,-4584.92496565,0.00013406,2]
[338342206,1726524632618,-11282.57503435,0.00013406,2]
[338342208,1726524632627,-250.0,0.00013406,2]
[338342210,1726524632637,-120.76666566,0.00013408,2]
[338342212,1726524632650,-129.23333434,0.00013408,2]
[338342215,1726524632662,-121.10447119,0.00013408,2]
[338342217,1726524632674,-58.88552881,0.00013408,2]
[338342219,1726524632684,-297.99555073,0.00013421,2]
[338342221,1726524632695,-702.00444927,0.00013421,2]
[338342223,1726524632705,-201.08,0.00013431,2]
[338342225,1726524632715,-159.34,0.00013702,2]
[338342227,1726524632725,-150.0,0.00013808,2]
[338342229,1726524632735,-500.0,0.00013904,2]
[338342231,1726524632746,-150.0,0.00014178,2]
[338342233,1726524632757,-563.14465933,0.00014178,2]
[338342236,1726524632774,-36.85534067,0.00014178,2]
[338342237,1726524632786,-307.0,0.00014256,2]
[338342238,1726524632796,-500.0,0.0001426,2]
[338342239,1726524632806,-1484.6869,0.0001426,2]
[338342240,1726524632818,-1256.42075113,0.0001426,2]
[338342241,1726524632831,-3854.44274887,0.0001426,2]
[338342242,1726524632842,-150.0,0.00014301,2]
[338342243,1726524632853,-615.5669,0.0001443,2]
[338342244,1726524632864,-615.5669,0.0001443,2]
[338342245,1726524632874,-162.60938,0.0001443,2]
[338342246,1726524632885,-1262.01333332,0.0001444,2]
[338342247,1726524632896,-615.5669,0.0001447,2]
[338342248,1726524632906,-192.568,0.00014479,2]
[338342249,1726524632915,-210.91,0.00014479,2]
[338342250,1726524632926,-20237.5608,0.0001448,2]
[338342251,1726524632936,-1000.0,0.000145,2]
[338342252,1726524632947,-150.0,0.00014509,2]
[338342253,1726524632957,-615.5669,0.0001451,2]
[338342254,1726524632968,-15000.0,0.00014555,2]
[338342255,1726524632978,-150.0,0.00014558,2]
[338342256,1726524632989,-150.0,0.00014571,2]
[338342257,1726524632999,-534.964,0.0001458,2]
[338342258,1726524633008,-456.79495034,0.0001458,2]
[338342259,1726524633018,-615.5669,0.0001458,2]